[Event "FIDE Chesscom Grand Swiss 2019"]
[Site "Douglas-Isle of Man"]
[Date "2019.10.14"]
[Round "5.6"]
[White "Nabaty, Tamir"]
[Black "L'Ami, Erwin"]
[Result "1-0"]
[ECO "C24"]
[WhiteElo "2658"]
[BlackElo "2619"]
[Annotator "RC"]
[PlyCount "59"]
[EventDate "2019.10.10"]
[EventType "swiss"]
[EventCountry "GBR"]
[SourceTitle "playchess.com"]
[Source "ChessBase"]
[SourceQuality "1"]
[TimeControl "40/6000+30:20/3000+30:900+30"]

1. e4 {[%emt 0:03:15]} e5 {[%emt 0:00:00]} 2. Bc4 {[%emt 0:00:16]} Nf6 {[%emt 0:00:48]} 3. d3 {[%emt 0:00:19]} Nc6 {[%emt 0:00:43]} 4. a3 {[%emt 0:00:13]} g6 {[%emt 0:03:28]} 5. Nc3 {[%emt 0:02:44]} Bg7 {[%emt 0:00:51]} 6. f4 {[%emt 0:07:19]} O-O {[%emt 0:08:17]} 7. f5 {[%emt 0:13:06]} gxf5 {[%emt 0:04:39]} 8. Bg5 {[%emt 0:01:40]} Ne7 {[%emt 0:03:27]} 9. Qf3 {[%emt 0:11:42]} c6 {[%emt 0:09:32]} 10. Nge2 {[%emt 0:02:58]} d5 {[%emt 0:02:21]} 11. Bxf6 {[%emt 0:13:24]} Bxf6 {[%emt 0:00:15]} 12. exd5 {[%emt 0:00:12]} cxd5 {[%emt 0:07:12]} 13. Bxd5 {[%emt 0:02:11]} Nxd5 {[%emt 0:07:58]} 14. Nxd5 {[%emt 0:00:47]} Bg7 {[%emt 0:02:08]} 15. O-O {[%emt 0:04:01]} Be6 {[%emt 0:02:41]} 16. c4 {[%emt 0:02:03]} Kh8 {[%emt 0:03:32]} 17. Ng3 {[%emt 0:06:45]} f4 {[%emt 0:01:08]} 18. Nh5 {[%emt 0:00:30]} Qg5 {[%emt 0:10:09]} 19. Nxg7 {[%emt 0:01:16]} Kxg7 {[%emt 0:00:41]} 20. d4 {[%emt 0:07:10]} Bg4 {[%emt 0:03:16]} 21. Qc3 {[%emt 0:00:57]} Be2 {[%emt 0:08:08]} 22. Rf2 {[%emt 0:02:41]} f3 {[%emt 0:00:19]} 23. dxe5 {[%emt 0:00:20]} Rae8 {[%emt 0:06:26]} 24. e6+ {[%emt 0:04:03]} f6 {[%emt 0:01:11]} 25. e7 {[%emt 0:00:08]} Rf7 {[%emt 0:00:24]} 26. Re1 {[%emt 0:03:14]} b5 {[%emt 0:02:22]} 27. b3 {[%emt 0:05:14]} bxc4 {[%emt 0:01:06]} 28. bxc4 {[%emt 0:00:02]} Qg4 {[%emt 0:02:59]} 29. Nxf6 {[%emt 0:05:54]} Rxf6 {[%emt 0:00:33]} 30. Rexe2 {[%emt 0:00:09]} 1-0

[Event "FIDE Chesscom Grand Swiss 2019"]
[Site "Douglas-Isle of Man"]
[Date "2019.10.14"]
[Round "5.8"]
[White "Shirov, Alexei"]
[Black "Sargissian, Gabriel"]
[Result "1-0"]
[ECO "C91"]
[WhiteElo "2664"]
[BlackElo "2690"]
[Annotator "RC"]
[PlyCount "91"]
[EventDate "2019.10.10"]
[EventType "swiss"]
[EventCountry "GBR"]
[SourceTitle "playchess.com"]
[Source "ChessBase"]
[SourceQuality "1"]
[TimeControl "40/6000+30:20/3000+30:900+30"]

1. e4 {[%emt 0:00:36]} e5 {[%emt 0:00:00]} 2. Nf3 {[%emt 0:00:43]} Nc6 {[%emt 0:00:00]} 3. Bb5 {[%emt 0:00:03]} a6 {[%emt 0:00:00]} 4. Ba4 {[%emt 0:00:04]} Nf6 {[%emt 0:00:04]} 5. O-O {[%emt 0:00:05]} Be7 {[%emt 0:00:06]} 6. Re1 {[%emt 0:00:04]} b5 {[%emt 0:00:09]} 7. Bb3 {[%emt 0:00:03]} O-O {[%emt 0:00:06]} 8. d4 {[%emt 0:00:02]} d6 {[%emt 0:11:43]} 9. c3 {[%emt 0:00:19]} Bg4 {[%emt 0:00:05]} 10. Be3 {[%emt 0:00:04]} Bh5 {[%emt 0:00:05]} 11. h3 {[%emt 0:00:12]} exd4 {[%emt 0:08:26]} 12. cxd4 {[%emt 0:01:06]} Na5 {[%emt 0:00:06]} 13. Nbd2 {[%emt 0:16:35]} Nxb3 {[%emt 0:00:38]} 14. axb3 {[%emt 0:00:10]} d5 {[%emt 0:17:09]} 15. e5 {[%emt 0:01:13]} Ne4 {[%emt 0:00:06]} 16. Qc2 {[%emt 0:02:12]} Nxd2 {[%emt 0:02:12]} 17. Nxd2 {[%emt 0:03:19]} c5 {[%emt 0:00:43]} 18. dxc5 {[%emt 0:15:49]} d4 {[%emt 0:00:19]} 19. Bf4 {[%emt 0:00:04]} Bg6 {[%emt 0:05:57]} 20. Qc1 {[%emt 0:00:51]} a5 {[%emt 0:05:26]} 21. Nf3 {[%emt 0:10:57]} Qd5 {[%emt 0:11:24]} 22. e6 {[%emt 0:02:01]} Qxc5 {[%emt 0:01:59]} 23. Qd2 {[%emt 0:17:38]} fxe6 {[%emt 0:02:08]} 24. Rxe6 {[%emt 0:01:18]} Bf6 {[%emt 0:01:54]} 25. Be5 {[%emt 0:00:56]} d3 {[%emt 0:02:30]} 26. Bxf6 {[%emt 0:00:13]} Rxf6 {[%emt 0:00:20]} 27. Rxf6 {[%emt 0:02:23]} gxf6 {[%emt 0:00:05]} 28. b4 {[%emt 0:00:04]} Qd6 {[%emt 0:16:44]} 29. bxa5 {[%emt 0:03:20]} b4 {[%emt 0:00:04]} 30. a6 {[%emt 0:16:00]} Rxa6 {[%emt 0:00:40]} 31. Rxa6 {[%emt 0:00:05]} Qxa6 {[%emt 0:00:05]} 32. Qxb4 {[%emt 0:00:03]} Qa1+ {[%emt 0:02:45]} 33. Kh2 {[%emt 0:00:08]} Qc1 {[%emt 0:00:26]} 34. Kg3 {[%emt 0:02:02]} Qc2 {[%emt 0:03:57]} 35. Qd4 {[%emt 0:05:15]} Qc7+ {[%emt 0:02:50]} 36. Qf4 {[%emt 0:00:47]} Qb6 {[%emt 0:00:08]} 37. b4 {[%emt 0:00:35]} Kf8 {[%emt 0:00:14]} 38. Nd2 {[%emt 0:00:49]} Ke7 {[%emt 0:03:03]} 39. h4 {[%emt 0:08:56]} Qb5 {[%emt 0:04:47]} 40. Qd4 {[%emt 0:02:06]} Ke6 {[%emt 0:02:39]} 41. Kf4 {[%emt 0:03:16]} Qh5 {[%emt 0:14:56]} 42. Nf3 {[%emt 0:01:10]} Qh6+ {[%emt 0:00:55]} 43. Kg3 {[%emt 0:00:13]} Qc1 {[%emt 0:08:14]} 44. h5 {[%emt 0:02:57]} Bf5 {[%emt 0:00:51]} 45. Qf4 {[%emt 0:00:27]} Qc3 {[%emt 0:03:45]} 46. b5 {[%emt 0:02:03]} 1-0

[Event "FIDE Chesscom Grand Swiss 2019"]
[Site "Douglas-Isle of Man"]
[Date "2019.10.14"]
[Round "5.9"]
[White "Sevian, Samuel"]
[Black "Narayanan.S.L"]
[Result "1/2-1/2"]
[ECO "E21"]
[WhiteElo "2654"]
[BlackElo "2611"]
[Annotator "RC"]
[PlyCount "75"]
[EventDate "2019.10.10"]
[EventType "swiss"]
[EventCountry "GBR"]
[SourceTitle "playchess.com"]
[Source "ChessBase"]
[SourceQuality "1"]
[TimeControl "40/6000+30:20/3000+30:900+30"]

1. d4 {[%emt 0:00:00]} Nf6 {[%emt 0:00:00]} 2. c4 {[%emt 0:00:00]} e6 {[%emt 0:00:00]} 3. Nc3 {[%emt 0:00:35]} Bb4 {[%emt 0:00:00]} 4. Nf3 {[%emt 0:00:06]} O-O {[%emt 0:00:17]} 5. Bg5 {[%emt 0:00:18]} h6 {[%emt 0:00:36]} 6. Bh4 {[%emt 0:00:16]} c5 {[%emt 0:00:54]} 7. Rc1 {[%emt 0:00:44]} cxd4 {[%emt 0:00:10]} 8. Nxd4 {[%emt 0:00:14]} d5 {[%emt 0:00:06]} 9. cxd5 {[%emt 0:00:19]} g5 {[%emt 0:00:07]} 10. Bg3 {[%emt 0:00:04]} Qxd5 {[%emt 0:00:06]} 11. e3 {[%emt 0:00:10]} Qxa2 {[%emt 0:00:49]} 12. Qc2 {[%emt 0:01:47]} Nd5 {[%emt 0:00:11]} 13. h4 {[%emt 0:00:15]} Nxc3 {[%emt 0:00:41]} 14. bxc3 {[%emt 0:01:10]} Qxc2 {[%emt 0:00:06]} 15. Rxc2 {[%emt 0:00:04]} Be7 {[%emt 0:00:08]} 16. hxg5 {[%emt 0:00:06]} hxg5 {[%emt 0:02:14]} 17. f4 {[%emt 0:00:08]} Nc6 {[%emt 0:25:09]} 18. fxg5 {[%emt 0:00:37]} Bxg5 {[%emt 0:01:58]} 19. Rh5 {[%emt 0:00:17]} f6 {[%emt 0:02:46]} 20. Nf3 {[%emt 0:00:37]} Bxe3 {[%emt 0:00:07]} 21. Re2 {[%emt 0:00:07]} Bc1 {[%emt 0:00:47]} 22. Re4 {[%emt 0:13:39]} e5 {[%emt 0:08:50]} 23. Bc4+ {[%emt 0:10:19]} Kg7 {[%emt 0:00:07]} 24. Reh4 {[%emt 0:01:26]} Kg6 {[%emt 0:04:12]} 25. Rh7 {[%emt 0:29:01]} e4 {[%emt 0:12:30]} 26. Nd2 {[%emt 0:09:16]} Ne5 {[%emt 0:07:11]} 27. R7h6+ {[%emt 0:05:47]} Kg7 {[%emt 0:00:46]} 28. Rh7+ {[%emt 0:00:58]} Kg6 {[%emt 0:00:32]} 29. R4h6+ {[%emt 0:11:14]} Kf5 {[%emt 0:00:34]} 30. Rh5+ {[%emt 0:01:27]} Kg6 {[%emt 0:03:05]} 31. R7h6+ {[%emt 0:02:44]} Kg7 {[%emt 0:00:13]} 32. Rh7+ {[%emt 0:02:39]} Kg6 {[%emt 0:00:09]} 33. R7h6+ {[%emt 0:04:10]} Kg7 {[%emt 0:00:07]} 34. Bxe5 {[%emt 0:08:46]} fxe5 {[%emt 0:03:20]} 35. Rh7+ {[%emt 0:00:07]} Kg6 {[%emt 0:00:10]} 36. R7h6+ {[%emt 0:00:25]} Kg7 {[%emt 0:00:07]} 37. Rh7+ {[%emt 0:00:03]} Kg6 {[%emt 0:00:07]} 38. R7h6+ {[%emt 0:04:56]} 1/2-1/2

[Event "FIDE Chesscom Grand Swiss 2019"]
[Site "Douglas-Isle of Man"]
[Date "2019.10.14"]
[Round "5.13"]
[White "Zvjaginsev, Vadim"]
[Black "Yilmaz, Mustafa"]
[Result "1/2-1/2"]
[ECO "D38"]
[WhiteElo "2644"]
[BlackElo "2595"]
[Annotator "RC"]
[PlyCount "82"]
[EventDate "2019.10.10"]
[EventType "swiss"]
[EventCountry "GBR"]
[SourceTitle "playchess.com"]
[Source "ChessBase"]
[SourceQuality "1"]
[TimeControl "40/6000+30:20/3000+30:900+30"]

1. d4 {[%emt 0:00:00]} Nf6 {[%emt 0:00:48]} 2. c4 {[%emt 0:00:00]} e6 {[%emt 0:00:27]} 3. Nf3 {[%emt 0:00:00]} d5 {[%emt 0:00:26]} 4. Nc3 {[%emt 0:00:02]} Bb4 {[%emt 0:01:48]} 5. Bg5 {[%emt 0:00:20]} h6 {[%emt 0:00:23]} 6. Bxf6 {[%emt 0:00:32]} Qxf6 {[%emt 0:00:06]} 7. Qa4+ {[%emt 0:00:38]} Nc6 {[%emt 0:01:05]} 8. e3 {[%emt 0:00:05]} O-O {[%emt 0:01:21]} 9. Rd1 {[%emt 0:01:01]} Qg6 {[%emt 0:05:27]} 10. h3 {[%emt 0:00:35]} Bd7 {[%emt 0:10:20]} 11. Qb3 {[%emt 0:01:11]} dxc4 {[%emt 0:03:56]} 12. Qxc4 {[%emt 0:04:21]} Qc2 {[%emt 0:07:17]} 13. a3 {[%emt 0:01:32]} Bxc3+ {[%emt 0:10:20]} 14. Qxc3 {[%emt 0:04:34]} Qxc3+ {[%emt 0:00:06]} 15. bxc3 {[%emt 0:00:03]} Rfd8 {[%emt 0:02:30]} 16. g4 {[%emt 0:06:00]} Rac8 {[%emt 0:07:58]} 17. Rg1 {[%emt 0:07:07]} Ne7 {[%emt 0:04:18]} 18. g5 {[%emt 0:03:51]} hxg5 {[%emt 0:03:38]} 19. Rxg5 {[%emt 0:01:24]} f6 {[%emt 0:02:07]} 20. Ra5 {[%emt 0:04:38]} Nc6 {[%emt 0:02:22]} 21. Rb5 {[%emt 0:03:14]} b6 {[%emt 0:00:27]} 22. Rb2 {[%emt 0:08:49]} Na5 {[%emt 0:02:42]} 23. Ba6 {[%emt 0:06:59]} Rb8 {[%emt 0:00:04]} 24. Be2 {[%emt 0:00:56]} Kf7 {[%emt 0:05:13]} 25. c4 {[%emt 0:01:46]} Ke7 {[%emt 0:01:58]} 26. Nd2 {[%emt 0:08:49]} Rh8 {[%emt 0:05:39]} 27. Bf1 {[%emt 0:00:48]} Rh5 {[%emt 0:03:01]} 28. c5 {[%emt 0:01:34]} e5 {[%emt 0:03:24]} 29. dxe5 {[%emt 0:06:33]} Rxe5 {[%emt 0:01:11]} 30. Rc1 {[%emt 0:01:08]} Rh5 {[%emt 0:04:16]} 31. cxb6 {[%emt 0:04:08]} cxb6 {[%emt 0:01:02]} 32. Rc7 {[%emt 0:11:21]} Rb7 {[%emt 0:05:41]} 33. Rbc2 {[%emt 0:01:39]} Kd8 {[%emt 0:04:04]} 34. R7c3 {[%emt 0:01:55]} Rb8 {[%emt 0:02:00]} 35. Ne4 {[%emt 0:06:49]} Rc8 {[%emt 0:02:40]} 36. Rxc8+ {[%emt 0:02:36]} Bxc8 {[%emt 0:00:01]} 37. Rd2+ {[%emt 0:00:07]} Ke7 {[%emt 0:00:35]} 38. Rc2 {[%emt 0:00:05]} Kd8 {[%emt 0:02:23]} 39. Rd2+ {[%emt 0:00:04]} Kc7 {[%emt 0:01:16]} 40. f4 {[%emt 0:07:12]} Bb7 {[%emt 0:04:45]} 41. Rc2+ {[%emt 0:05:49]} Kd8 {[%emt 0:02:42]} 1/2-1/2

[Event "FIDE Chesscom Grand Swiss 2019"]
[Site "Douglas-Isle of Man"]
[Date "2019.10.14"]
[Round "5.14"]
[White "Christiansen, Johan-Sebastian"]
[Black "Nguyen, Ngoc Truong Son"]
[Result "1/2-1/2"]
[ECO "B30"]
[WhiteElo "2558"]
[BlackElo "2638"]
[Annotator "RC"]
[PlyCount "39"]
[EventDate "2019.10.10"]
[EventType "swiss"]
[EventCountry "GBR"]
[SourceTitle "playchess.com"]
[Source "ChessBase"]
[SourceQuality "1"]
[TimeControl "40/6000+30:20/3000+30:900+30"]

1. e4 {[%emt 0:00:00]} c5 {[%emt 0:00:00]} 2. Nf3 {[%emt 0:00:00]} Nc6 {[%emt 0:00:00]} 3. Nc3 {[%emt 0:00:26]} e5 {[%emt 0:01:10]} 4. Bc4 {[%emt 0:00:43]} Be7 {[%emt 0:04:08]} 5. d3 {[%emt 0:04:02]} d6 {[%emt 0:00:33]} 6. Nd2 {[%emt 0:01:20]} Nf6 {[%emt 0:00:42]} 7. Nf1 {[%emt 0:00:52]} Nd7 {[%emt 0:00:49]} 8. Nd5 {[%emt 0:00:33]} Nb6 {[%emt 0:00:31]} 9. Nxb6 {[%emt 0:00:06]} axb6 {[%emt 0:00:33]} 10. c3 {[%emt 0:00:05]} O-O {[%emt 0:00:57]} 11. h4 {[%emt 0:00:04]} Be6 {[%emt 0:09:26]} 12. Bxe6 {[%emt 0:00:32]} fxe6 {[%emt 0:00:15]} 13. Qg4 {[%emt 0:00:07]} Qd7 {[%emt 0:00:55]} 14. h5 {[%emt 0:00:05]} Rf7 {[%emt 0:05:56]} 15. Nh2 {[%emt 0:10:39]} Na5 {[%emt 0:05:38]} 16. Rb1 {[%emt 0:17:03]} Nc6 {[%emt 0:12:13]} 17. Ra1 {[%emt 0:05:08]} Na5 {[%emt 0:09:37]} 18. Rb1 {[%emt 0:04:41]} Nc6 {[%emt 0:00:44]} 19. Ra1 {[%emt 0:02:58]} Na5 {[%emt 0:14:45]} 20. Rb1 {[%emt 0:00:30]} 1/2-1/2

[Event "FIDE Chesscom Grand Swiss 2019"]
[Site "Douglas-Isle of Man"]
[Date "2019.10.14"]
[Round "5.15"]
[White "Adly, Ahmed"]
[Black "Puranik, Abhimanyu"]
[Result "0-1"]
[ECO "A05"]
[WhiteElo "2636"]
[BlackElo "2571"]
[Annotator "RC"]
[PlyCount "74"]
[EventDate "2019.10.10"]
[EventType "swiss"]
[EventCountry "GBR"]
[SourceTitle "playchess.com"]
[Source "ChessBase"]
[SourceQuality "1"]
[TimeControl "40/6000+30:20/3000+30:900+30"]

1. Nf3 {[%emt 0:00:00]} Nf6 {[%emt 0:00:00]} 2. e3 {[%emt 0:00:23]} g6 {[%emt 0:00:02]} 3. b4 {[%emt 0:00:12]} Bg7 {[%emt 0:01:06]} 4. Bb2 {[%emt 0:00:03]} d5 {[%emt 0:01:46]} 5. d4 {[%emt 0:00:26]} O-O {[%emt 0:01:24]} 6. Be2 {[%emt 0:00:03]} c6 {[%emt 0:01:34]} 7. O-O {[%emt 0:00:10]} Nbd7 {[%emt 0:10:03]} 8. a4 {[%emt 0:01:41]} a5 {[%emt 0:03:16]} 9. b5 {[%emt 0:00:03]} c5 {[%emt 0:00:38]} 10. c4 {[%emt 0:00:06]} b6 {[%emt 0:18:20]} 11. Ne5 {[%emt 0:00:09]} Bb7 {[%emt 0:07:08]} 12. Nc6 {[%emt 0:06:16]} Bxc6 {[%emt 0:04:35]} 13. bxc6 {[%emt 0:00:03]} Nb8 {[%emt 0:00:04]} 14. dxc5 {[%emt 0:00:23]} Nxc6 {[%emt 0:03:10]} 15. cxd5 {[%emt 0:00:11]} Nxd5 {[%emt 0:04:13]} 16. Bxg7 {[%emt 0:00:35]} Kxg7 {[%emt 0:00:03]} 17. Ra2 {[%emt 0:02:25]} Ndb4 {[%emt 0:05:11]} 18. Rd2 {[%emt 0:00:17]} Qb8 {[%emt 0:02:24]} 19. Qc1 {[%emt 0:04:45]} bxc5 {[%emt 0:06:28]} 20. Qxc5 {[%emt 0:00:53]} Rc8 {[%emt 0:01:52]} 21. Na3 {[%emt 0:00:44]} Qa7 {[%emt 0:12:21]} 22. Qxa7 {[%emt 0:00:45]} Nxa7 {[%emt 0:02:26]} 23. Nc4 {[%emt 0:05:44]} Rc5 {[%emt 0:00:47]} 24. Rd7 {[%emt 0:01:05]} Nac6 {[%emt 0:00:58]} 25. f4 {[%emt 0:00:02]} Na2 {[%emt 0:04:53]} 26. Ra1 {[%emt 0:00:15]} Nc3 {[%emt 0:00:16]} 27. Bf1 {[%emt 0:00:02]} Rb8 {[%emt 0:01:37]} 28. Ra3 {[%emt 0:02:29]} Ne4 {[%emt 0:00:32]} 29. Nd2 {[%emt 0:03:06]} Nd6 {[%emt 0:02:53]} 30. Rd3 {[%emt 0:06:36]} Rc2 {[%emt 0:03:37]} 31. Nb3 {[%emt 0:03:07]} Rb4 {[%emt 0:03:11]} 32. Rc7 {[%emt 0:00:07]} Rxa4 {[%emt 0:01:19]} 33. Rd2 {[%emt 0:00:01]} Rc3 {[%emt 0:01:10]} 34. Rxd6 {[%emt 0:03:13]} exd6 {[%emt 0:00:05]} 35. Nd4 {[%emt 0:00:04]} Rxe3 {[%emt 0:01:45]} 36. Nxc6 {[%emt 0:00:08]} Rc3 {[%emt 0:00:45]} 37. Bb5 {[%emt 0:01:25]} Ra1+ {[%emt 0:00:15]} 0-1

[Event "FIDE Chesscom Grand Swiss 2019"]
[Site "Douglas-Isle of Man"]
[Date "2019.10.14"]
[Round "5.16"]
[White "Zhang, Zhong"]
[Black "Baron, Tal"]
[Result "1-0"]
[ECO "A17"]
[WhiteElo "2636"]
[BlackElo "2531"]
[Annotator "RC"]
[PlyCount "75"]
[EventDate "2019.10.10"]
[EventType "swiss"]
[EventCountry "GBR"]
[SourceTitle "playchess.com"]
[Source "ChessBase"]
[SourceQuality "1"]
[TimeControl "40/6000+30:20/3000+30:900+30"]

1. Nf3 {[%emt 0:00:00]} Nf6 {[%emt 0:00:00]} 2. c4 {[%emt 0:00:08]} c5 {[%emt 0:00:00]} 3. Nc3 {[%emt 0:00:24]} d5 {[%emt 0:00:00]} 4. cxd5 {[%emt 0:00:06]} Nxd5 {[%emt 0:00:00]} 5. e3 {[%emt 0:00:15]} e6 {[%emt 0:00:51]} 6. Nxd5 {[%emt 0:00:29]} exd5 {[%emt 0:00:04]} 7. b4 {[%emt 0:00:11]} cxb4 {[%emt 0:01:05]} 8. Bb2 {[%emt 0:00:04]} Nc6 {[%emt 0:03:59]} 9. Nd4 {[%emt 0:00:22]} h5 {[%emt 0:06:13]} 10. Rc1 {[%emt 0:05:05]} Rh6 {[%emt 0:20:21]} 11. Be2 {[%emt 0:03:42]} Qa5 {[%emt 0:05:03]} 12. Nb3 {[%emt 0:14:41]} Qa4 {[%emt 0:16:02]} 13. O-O {[%emt 0:20:53]} Bf5 {[%emt 0:08:55]} 14. Ra1 {[%emt 0:16:37]} h4 {[%emt 0:12:16]} 15. Bg4 {[%emt 0:06:52]} Bd3 {[%emt 0:00:25]} 16. Re1 {[%emt 0:00:12]} f5 {[%emt 0:02:44]} 17. Be2 {[%emt 0:01:10]} Qa6 {[%emt 0:01:58]} 18. Bh5+ {[%emt 0:07:01]} g6 {[%emt 0:00:45]} 19. Bf3 {[%emt 0:00:10]} O-O-O {[%emt 0:00:50]} 20. Bf6 {[%emt 0:00:51]} Rd7 {[%emt 0:01:24]} 21. Qc1 {[%emt 0:04:31]} Qc4 {[%emt 0:03:15]} 22. Qb2 {[%emt 0:00:25]} Qc2 {[%emt 0:00:52]} 23. Qxc2 {[%emt 0:05:37]} Bxc2 {[%emt 0:00:02]} 24. Rec1 {[%emt 0:00:26]} Bxb3 {[%emt 0:00:58]} 25. axb3 {[%emt 0:00:02]} Kb8 {[%emt 0:00:05]} 26. h3 {[%emt 0:02:41]} Rhh7 {[%emt 0:07:28]} 27. Kf1 {[%emt 0:00:53]} Be7 {[%emt 0:03:11]} 28. Bxe7 {[%emt 0:01:42]} Rhxe7 {[%emt 0:00:01]} 29. Rc5 {[%emt 0:00:32]} Ne5 {[%emt 0:00:21]} 30. Bxd5 {[%emt 0:07:04]} Nd3 {[%emt 0:06:51]} 31. Rb5 {[%emt 0:00:17]} a6 {[%emt 0:01:14]} 32. Rxa6 {[%emt 0:04:15]} Nc5 {[%emt 0:05:44]} 33. Rxg6 {[%emt 0:01:02]} Rxd5 {[%emt 0:00:03]} 34. d4 {[%emt 0:00:25]} Rxd4 {[%emt 0:02:48]} 35. exd4 {[%emt 0:02:47]} Nd3 {[%emt 0:00:01]} 36. g3 {[%emt 0:01:58]} f4 {[%emt 0:00:04]} 37. Rg8+ {[%emt 0:01:36]} Kc7 {[%emt 0:00:03]} 38. gxf4 {[%emt 0:00:18]} 1-0

[Event "FIDE Chesscom Grand Swiss 2019"]
[Site "Douglas-Isle of Man"]
[Date "2019.10.14"]
[Round "5.17"]
[White "Saduakassova, Dinara"]
[Black "Mareco, Sandro"]
[Result "1/2-1/2"]
[ECO "E05"]
[WhiteElo "2481"]
[BlackElo "2634"]
[Annotator "RC"]
[PlyCount "62"]
[EventDate "2019.10.10"]
[EventType "swiss"]
[EventCountry "GBR"]
[SourceTitle "playchess.com"]
[Source "ChessBase"]
[SourceQuality "1"]
[TimeControl "40/6000+30:20/3000+30:900+30"]

1. d4 {[%emt 0:00:00]} Nf6 {[%emt 0:00:00]} 2. c4 {[%emt 0:00:00]} e6 {[%emt 0:00:00]} 3. Nf3 {[%emt 0:00:00]} d5 {[%emt 0:00:00]} 4. g3 {[%emt 0:00:00]} Be7 {[%emt 0:00:03]} 5. Bg2 {[%emt 0:00:04]} O-O {[%emt 0:00:05]} 6. O-O {[%emt 0:00:03]} dxc4 {[%emt 0:00:05]} 7. Qc2 {[%emt 0:00:02]} a6 {[%emt 0:00:10]} 8. a4 {[%emt 0:00:20]} Bd7 {[%emt 0:00:04]} 9. Qxc4 {[%emt 0:03:02]} Bc6 {[%emt 0:00:06]} 10. Bf4 {[%emt 0:00:32]} Bd6 {[%emt 0:00:50]} 11. Bg5 {[%emt 0:04:30]} Nbd7 {[%emt 0:09:52]} 12. Nc3 {[%emt 0:03:17]} h6 {[%emt 0:01:07]} 13. Bxf6 {[%emt 0:10:09]} Nxf6 {[%emt 0:00:05]} 14. Rfe1 {[%emt 0:02:46]} Bd5 {[%emt 0:06:12]} 15. Qd3 {[%emt 0:05:54]} Bxf3 {[%emt 0:00:13]} 16. Bxf3 {[%emt 0:03:23]} c6 {[%emt 0:00:05]} 17. Red1 {[%emt 0:04:14]} Qa5 {[%emt 0:08:04]} 18. Qc4 {[%emt 0:04:27]} Rad8 {[%emt 0:04:18]} 19. Rab1 {[%emt 0:04:49]} Nd5 {[%emt 0:03:51]} 20. Ne4 {[%emt 0:02:37]} Nb6 {[%emt 0:04:05]} 21. Qb3 {[%emt 0:02:36]} Bb4 {[%emt 0:04:26]} 22. Ra1 {[%emt 0:02:39]} Rfe8 {[%emt 0:05:47]} 23. Kg2 {[%emt 0:05:13]} Bf8 {[%emt 0:22:58]} 24. e3 {[%emt 0:05:03]} Rb8 {[%emt 0:07:37]} 25. Qc3 {[%emt 0:08:38]} Bb4 {[%emt 0:03:32]} 26. Qc2 {[%emt 0:04:18]} Nd7 {[%emt 0:00:46]} 27. Nd2 {[%emt 0:04:52]} Qc7 {[%emt 0:00:11]} 28. Rac1 {[%emt 0:03:29]} Rbd8 {[%emt 0:01:49]} 29. Ne4 {[%emt 0:02:43]} a5 {[%emt 0:01:39]} 30. h4 {[%emt 0:02:23]} Be7 {[%emt 0:04:23]} 31. Qb3 {[%emt 0:03:10]} Qb6 {[%emt 0:06:14]} 1/2-1/2